bitfinex/quotes_ETHUSD_20260114
["timestamp","ask_amount","ask_price","bid_price","bid_amount"]
[1768359942282,1.523,3321.3,3321.2,0.001]
[1768359943481,4.53386923,3321.3,3321.2,0.001]
[1768359943687,5.08886923,3321.3,3321.2,0.001]
[1768359943988,6.94817615,3321.2,3320.2,9.90705674]
[1768359944297,9.1316945,3321.3,3320.3,6.89521065]
[1768359945680,15.74034482,3321.3,3320.3,6.89521065]
[1768359946372,16.29534482,3321.3,3320.3,6.89521065]
[1768359947601,13.28447559,3321.3,3320.4,6.89521065]
[1768359948803,16.29534482,3321.3,3320.4,6.89521065]
[1768359948965,16.85034482,3321.3,3320.4,6.89521065]
[1768359949163,1.68503448,3321.2,3320.4,6.89521065]
[1768359949384,16.85034482,3321.3,3320.4,6.89521065]
[1768359951380,17.40534482,3321.3,3320.4,6.89521065]
[1768359952590,14.39447559,3321.3,3320.4,6.89521065]
[1768359953116,17.40534482,3321.3,3320.4,6.89521065]
[1768359954018,17.96034482,3321.3,3320.4,6.89521065]
[1768359956017,0.002,3321.0,3320.7,0.001]
[1768359956317,0.413,3320.9,3320.7,0.001]
[1768359958919,0.968,3320.9,3320.7,0.001]
[1768359960723,0.968,3320.9,3320.7,6.89621065]
[1768359961650,1.523,3320.9,3320.7,6.89621065]
[1768359964322,2.078,3320.9,3320.7,6.89621065]
[1768359967709,2.633,3320.9,3320.7,6.89621065]
[1768359970524,3.188,3320.9,3320.7,6.89621065]
[1768359971732,2.775,3320.9,3320.7,6.89621065]
[1768359971922,0.413,3320.8,3320.7,6.89621065]
[1768359972128,0.69727444,3320.8,3320.0,6.65340253]
[1768359972434,0.69727444,3320.8,3319.6,0.413]
[1768359972435,6.49556784,3320.7,3319.9,3.01208828]
[1768359972652,6.49556784,3320.7,3320.0,6.65340253]
[1768359972807,0.555,3320.7,3320.0,6.65340253]
[1768359973336,0.555,3320.7,3320.1,6.65340253]
[1768359974698,0.413,3320.6,3320.1,6.65340253]
[1768359975540,0.968,3320.6,3320.1,6.65340253]
[1768359978438,1.523,3320.6,3320.1,6.65340253]
[1768359979828,1.523,3320.6,3320.4,0.001]
[1768359981007,2.078,3320.6,3320.4,0.001]
[1768359983141,1.665,3320.6,3320.4,0.001]
[1768359983312,0.413,3320.5,3320.4,0.001]
[1768359984744,0.7318,3320.5,3319.7,6.90213238]
[1768359985034,0.413,3320.4,3319.9,6.90213238]
[1768359985252,2.71087048,3320.6,3320.1,6.90213238]
[1768359985253,0.413,3320.3,3320.1,6.90213238]
[1768359985808,0.968,3320.3,3320.1,6.90213238]
[1768359986237,0.89849408,3320.3,3320.1,6.90213238]
[1768359986805,0.555,3320.3,3320.1,6.90213238]
[1768359987034,2.71087048,3320.6,3320.2,6.93225104]
[1768359987231,3.12387048,3320.6,3320.2,6.90213238]
[1768359988440,3.67887048,3320.6,3320.2,6.90213238]
[1768359989845,3.188,3320.6,3320.2,6.90213238]
[1768359990927,3.743,3320.6,3320.2,6.90213238]
[1768359991243,3.33,3320.6,3320.2,6.90213238]
[1768359991448,3.743,3320.6,3320.2,6.90213238]
[1768359991946,3.743,3320.6,3320.5,0.001]
[1768359993552,4.298,3320.6,3320.5,0.001]
[1768359995655,1.098,3320.6,3320.5,0.001]
[1768359996149,1.653,3320.6,3320.5,0.001]
[1768359996933,1.24,3320.6,3320.5,0.001]
[1768359997259,1.504,3320.6,3320.5,0.001]
[1768359998340,2.059,3320.6,3320.5,0.001]
[1768359999860,2.018,3320.6,3320.5,0.001]
[1768360000055,1.663,3320.6,3320.5,0.001]
[1768360000563,1.645,3320.6,3320.5,0.001]
[1768360000763,2.2,3320.6,3320.5,0.001]
[1768360000945,2.179,3320.6,3320.5,0.001]
[1768360001152,2.164,3320.6,3320.5,0.001]
[1768360001461,2.109,3320.6,3320.5,0.001]
[1768360001664,1.599,3320.6,3320.5,0.001]
[1768360001961,1.182,3320.6,3320.5,0.001]
[1768360004165,1.737,3320.6,3320.5,6.70690091]
[1768360004533,1.737,3320.6,3320.5,0.001]
[1768360006174,0.433,3320.7,3320.5,6.70690091]
[1768360006335,1.87274437,3320.9,3320.5,6.70690091]
[1768360006535,0.555,3320.7,3320.6,6.70590091]
[1768360006845,3.887,3321.3,3320.8,6.70590091]
[1768360006846,0.413,3321.1,3320.8,6.70590091]
[1768360007468,0.413,3321.1,3320.6,6.70590091]
[1768360008364,6.67665782,3321.1,3320.5,0.001]
[1768360009031,7.23165782,3321.1,3320.5,0.001]
[1768360010466,0.968,3321.1,3320.5,0.001]
[1768360010672,7.23165782,3321.1,3320.5,0.001]
[1768360011874,7.78665782,3321.1,3320.5,0.001]
[1768360014488,8.34165782,3321.1,3320.5,0.001]
[1768360014783,8.34165782,3321.1,3320.8,0.001]
[1768360014951,0.51361756,3321.0,3320.8,0.001]
[1768360015843,8.34165782,3321.1,3320.8,0.001]
[1768360016042,2.078,3321.1,3320.8,0.001]
[1768360016583,8.34165782,3321.1,3320.8,0.001]
[1768360016762,8.89665782,3321.1,3320.8,0.001]
[1768360020067,9.45165782,3321.1,3320.8,0.001]
[1768360021156,3.188,3321.1,3320.8,0.001]
[1768360022583,3.743,3321.1,3320.8,0.001]
[1768360024961,4.298,3321.1,3320.8,0.001]
[1768360027373,4.853,3321.1,3320.8,0.001]
[1768360029781,5.408,3321.1,3320.8,0.001]
[1768360032506,5.963,3321.1,3320.8,0.001]
[1768360034407,6.43177192,3321.0,3320.5,0.001]
[1768360034721,12.39477192,3321.1,3320.5,0.001]
[1768360034921,0.555,3321.0,3320.5,0.001]
[1768360037287,0.413,3320.9,3320.5,0.001]
[1768360037489,1.11,3321.0,3320.5,6.69844365]
[1768360037690,0.413,3320.9,3320.5,6.69844365]
[1768360037994,0.413,3320.9,3320.8,0.001]
[1768360039935,0.968,3320.9,3320.8,0.001]
[1768360042729,1.523,3320.9,3320.8,0.001]
[1768360044125,1.11,3320.9,3320.8,0.001]
[1768360045225,1.665,3320.9,3320.8,0.001]
[1768360046119,8.522305,3320.9,3320.8,0.001]
[1768360046326,1.665,3320.9,3320.8,0.001]
[1768360047925,2.22,3320.9,3320.8,0.001]
[1768360049623,0.02,3320.9,3320.8,6.69844365]
[1768360050347,0.575,3320.9,3320.8,6.69844365]
[1768360052038,3.887,3321.3,3320.8,6.69844365]
[1768360052206,0.555,3322.1,3321.1,6.69744365]
[1768360052406,0.968,3322.1,3321.3,6.69744365]
[1768360052724,0.968,3322.1,3321.5,6.69744365]
[1768360053238,0.555,3322.1,3321.5,6.69744365]
[1768360053602,0.968,3322.1,3321.6,3.0105973]
[1768360053839,0.555,3322.1,3321.6,3.0105973]
[1768360054017,0.968,3322.1,3321.6,3.0105973]
[1768360054734,0.968,3322.1,3321.5,9.70809426]
[1768360055306,1.523,3322.1,3321.5,9.70809426]
[1768360056117,1.11,3322.1,3321.5,9.70809426]
[1768360057723,1.523,3322.1,3321.6,6.54779967]
[1768360058037,2.078,3322.1,3321.6,6.54779967]
[1768360058235,2.078,3322.1,3321.6,9.55833819]
[1768360059321,1.665,3322.1,3321.6,9.55833819]
[1768360059522,2.078,3322.1,3321.6,9.55833819]
[1768360060322,2.633,3322.1,3321.6,9.55833819]
[1768360061042,2.633,3322.1,3321.8,0.001]
[1768360061357,2.635,3322.1,3321.8,0.001]
[1768360062760,2.222,3322.1,3321.8,0.001]
[1768360062921,3.19,3322.1,3321.8,0.001]
[1768360064014,2.777,3322.1,3321.8,0.001]
[1768360065349,3.332,3322.1,3321.8,0.001]
[1768360068352,3.332,3322.1,3321.8,6.54879967]
[1768360068549,3.887,3322.1,3321.8,6.54879967]
[1768360069042,3.887,3322.1,3321.9,6.54779967]
[1768360069555,3.711,3322.1,3321.9,6.54779967]
[1768360070237,3.161,3322.1,3321.9,6.54779967]
[1768360070753,2.973,3322.1,3321.9,6.54779967]
[1768360070951,3.528,3322.1,3321.9,6.54779967]
[1768360071151,1.533,3322.1,3321.9,6.54779967]
[1768360071466,1.11,3322.3,3322.0,6.57790201]
[1768360071650,1.11,3322.3,3322.0,6.54779967]
[1768360072655,1.11,3322.3,3322.1,6.54779967]
[1768360072819,1.11,3322.3,3322.0,3.01014547]
[1768360073024,1.11,3322.3,3321.9,9.55807524]
[1768360073255,1.665,3322.3,3321.9,9.55807524]
[1768360073463,0.585,3322.5,3322.0,3.01021431]
[1768360073958,0.002,3322.1,3322.0,3.01021431]
[1768360075760,0.585,3322.5,3322.0,3.01021431]
[1768360076656,0.585,3322.5,3322.1,6.54779967]
[1768360078262,1.14,3322.5,3322.0,9.55801398]
[1768360078438,1.14,3322.5,3322.1,6.54779967]
[1768360079360,1.14,3322.5,3322.0,3.01021431]
[1768360080563,1.14,3322.5,3322.1,3.01013431]
[1768360080767,1.695,3322.5,3322.1,3.01013431]
[1768360081550,1.695,3322.5,3322.0,9.55799723]
[1768360083168,8.47375802,3322.5,3321.8,3.01134775]
[1768360083356,9.02875802,3322.5,3321.9,3.01031426]
[1768360083866,2.25,3322.5,3322.0,3.01023398]
[1768360084961,2.25,3322.5,3321.9,3.01029989]
[1768360085476,0.002,3322.2,3321.9,3.01029989]
[1768360085973,0.557,3322.2,3321.9,3.01029989]
[1768360088844,1.112,3322.2,3321.9,3.01029989]
[1768360090938,1.112,3322.2,3321.8,9.55917804]
[1768360091377,1.112,3322.2,3321.8,3.01137837]
[1768360091558,1.667,3322.2,3321.8,3.01137837]
[1768360092968,1.667,3322.2,3321.9,0.3009]
[1768360093175,1.667,3322.2,3321.8,3.01137837]
[1768360093888,2.222,3322.2,3321.8,3.01137837]
[1768360094188,2.222,3322.2,3321.8,0.001]
[1768360096058,2.20600001,3322.2,3321.8,0.001]
[1768360096368,2.76100001,3322.2,3321.8,0.001]
[1768360097481,2.76100001,3322.2,3322.1,0.001]
[1768360098880,3.31600001,3322.2,3322.1,0.001]
[1768360101494,3.87100001,3322.2,3322.1,0.001]
[1768360104564,4.42600001,3322.2,3322.1,0.001]
[1768360105596,11.1119985,3322.2,3322.1,0.001]
[1768360105818,11.1119985,3322.2,3321.2,3.42389764]
[1768360105819,6.68599849,3322.1,3321.2,3.42389764]
[1768360105968,6.68599849,3322.1,3321.3,10.873]
[1768360106173,6.68599849,3322.1,3321.4,3.01077562]
[1768360106603,4.83900001,3322.2,3321.5,3.01068324]
[1768360106909,11.5249985,3322.2,3321.5,3.01068324]
[1768360107082,12.0799985,3322.2,3321.5,3.01068324]
[1768360107700,6.68599849,3322.1,3321.5,3.01068324]
[1768360109207,6.68599849,3322.1,3321.8,0.001]
[1768360109374,5.39400001,3322.2,3321.8,0.001]
[1768360109375,4.98100001,3322.2,3321.8,0.001]
[1768360109574,0.968,3322.1,3321.8,0.001]
[1768360112298,1.523,3322.1,3321.8,0.001]
[1768360114974,2.078,3322.1,3321.8,0.001]
[1768360115513,10.04756704,3322.1,3321.8,0.001]
[1768360117290,8.40769217,3322.1,3321.8,0.001]
[1768360117493,8.96269217,3322.1,3321.8,0.001]
[1768360119631,6.32969217,3322.0,3321.8,0.001]
[1768360120808,9.33996542,3322.0,3321.8,0.001]
[1768360121009,6.32969217,3322.0,3321.8,0.001]
[1768360122200,8.63578039,3322.0,3321.8,0.001]
[1768360122517,8.63578039,3322.0,3320.8,6.50845166]
[1768360122518,6.32969217,3321.9,3320.8,6.50845166]
[1768360122718,9.3401082,3321.8,3320.9,16.50745166]
[1768360122889,0.413,3321.7,3321.0,6.50745166]
[1768360124021,6.74269217,3321.7,3320.8,6.50845166]
[1768360124738,7.29769217,3321.7,3320.8,6.50845166]
[1768360124888,6.32969217,3321.5,3320.8,6.50845166]
[1768360125089,6.32969217,3321.5,3320.8,0.001]
[1768360125289,7.66158085,3321.5,3320.8,0.001]
[1768360127226,6.32969217,3321.3,3320.8,0.001]
[1768360127428,0.413,3321.2,3320.8,0.001]
[1768360129525,6.32969217,3321.1,3320.8,0.001]
[1768360129927,6.88469217,3321.1,3320.8,0.001]
[1768360130117,7.66166852,3321.0,3320.8,0.001]
[1768360131927,10.67284748,3321.0,3320.8,0.001]
[1768360132627,11.22784748,3321.0,3320.8,0.001]
[1768360133137,11.22784748,3321.0,3320.5,0.001]
[1768360133138,6.32969217,3320.9,3320.5,0.001]
[1768360133330,6.32969217,3320.7,3320.5,0.001]
[1768360133833,6.74269217,3320.8,3320.5,0.001]
[1768360134037,7.00396139,3320.7,3320.5,0.001]
[1768360134741,0.67426922,3320.7,3320.5,0.001]
[1768360134904,0.555,3320.7,3320.5,0.001]
[1768360136636,0.413,3320.8,3320.5,6.50845166]
[1768360137304,0.555,3320.8,3320.5,6.50845166]
[1768360140163,1.11,3320.8,3320.5,6.50845166]
[1768360141659,0.968,3321.0,3320.6,6.50745166]
[1768360142663,1.523,3321.0,3320.6,6.50745166]
[1768360144762,1.523,3321.0,3320.9,0.001]
[1768360145064,2.078,3321.0,3320.9,0.001]
[1768360147456,2.633,3321.0,3320.9,0.001]
[1768360149165,7.13730832,3321.5,3320.9,6.33788516]
[1768360149166,0.555,3321.5,3320.9,6.33788516]
[1768360149459,0.413,3321.6,3321.0,6.33688516]
[1768360150267,1.11,3322.0,3321.1,6.33688516]
[1768360150570,0.413,3321.9,3321.1,6.33688516]
[1768360151263,6.99530832,3321.9,3320.9,0.001]
[1768360151567,3.01050666,3321.7,3320.9,6.33788516]
[1768360152365,3.01042764,3321.8,3321.0,6.33688516]
[1768360152529,0.968,3321.7,3321.0,6.33688516]
[1768360153971,3.97855396,3321.7,3321.0,6.33688516]
[1768360154742,0.968,3321.7,3321.0,6.33688516]
[1768360154944,1.523,3321.7,3321.0,6.33688516]
[1768360156089,4.53351229,3321.7,3321.0,6.33688516]
[1768360156245,0.002,3321.4,3321.0,6.33688516]
[1768360157378,0.557,3321.4,3321.0,6.33688516]
[1768360159945,1.112,3321.4,3321.0,6.33688516]
[1768360162056,1.112,3321.4,3320.9,0.001]
[1768360162257,2.07926163,3321.4,3320.9,0.001]
[1768360162554,1.667,3321.4,3320.9,0.001]
[1768360163448,0.413,3321.3,3320.9,0.001]
[1768360163874,6.90223513,3321.3,3320.9,0.001]
[1768360164669,7.45723513,3321.3,3320.9,0.001]
[1768360164873,1.51457935,3321.2,3320.9,0.001]
[1768360165778,4.52555281,3321.2,3320.9,0.001]
[1768360166346,6.48923513,3321.1,3320.9,0.001]
[1768360166645,6.48923513,3321.1,3320.5,0.001]
[1768360167280,7.04423513,3321.1,3320.5,0.001]
[1768360167981,6.48923513,3321.0,3320.5,0.001]
[1768360168484,3.56607513,3321.1,3320.5,0.001]
[1768360168972,3.56607513,3321.1,3320.5,6.7690412]
[1768360169284,3.56607513,3321.1,3320.8,0.001]
[1768360169487,4.61667715,3321.1,3320.8,0.001]
[1768360169650,5.17167715,3321.1,3320.8,0.001]
[1768360171989,5.58467715,3321.1,3320.8,0.001]
[1768360172188,15.63998741,3321.1,3320.8,0.001]
[1768360172399,6.48923513,3321.0,3319.8,6.7680412]
[1768360172606,6.48923513,3320.9,3319.8,6.7680412]
[1768360172770,6.48923513,3320.9,3319.7,3.452]
[1768360173096,6.48923513,3320.9,3319.8,6.7680412]
[1768360173284,6.48923513,3320.9,3319.6,6.7680412]
[1768360173488,6.48923513,3320.7,3319.6,6.7680412]
[1768360173688,6.48923513,3320.5,3319.6,6.7680412]
[1768360174067,9.50083131,3320.5,3319.6,6.7680412]
[1768360174795,10.05583131,3320.5,3319.6,6.7680412]
[1768360175168,3.56659618,3320.5,3319.7,6.40122359]
[1768360175375,0.413,3320.4,3319.7,6.40122359]
[1768360177326,3.4246884,3320.4,3319.7,6.40122359]
[1768360177619,3.5666884,3320.4,3319.7,6.40122359]
[1768360177778,0.413,3320.3,3319.7,6.40122359]
[1768360179999,0.968,3320.3,3319.7,6.40122359]
[1768360180518,0.555,3320.3,3320.0,0.001]
[1768360182496,1.11,3320.3,3320.0,0.001]
[1768360183522,4.68624979,3320.3,3320.0,0.001]
[1768360184097,1.67447061,3320.3,3320.0,0.001]
[1768360184299,4.68626732,3320.3,3320.0,0.001]
[1768360184499,11.1848704,3320.3,3320.0,0.001]
[1768360184903,11.7398704,3320.3,3320.0,0.001]
[1768360185113,1.57195675,3320.2,3320.0,0.001]
[1768360185512,2.22947061,3320.3,3320.0,0.001]
[1768360185820,6.49860308,3320.2,3320.0,0.001]
[1768360186430,2.22947061,3320.3,3320.0,0.001]
[1768360187630,2.78447061,3320.3,3320.0,0.001]
[1768360189229,0.413,3320.2,3320.0,0.001]
[1768360190231,0.968,3320.2,3320.0,0.001]
[1768360190732,0.555,3320.2,3320.0,0.001]
[1768360190938,0.968,3320.2,3320.0,0.001]
[1768360192910,1.523,3320.2,3320.0,0.001]
[1768360195836,2.078,3320.2,3320.0,0.001]
[1768360198845,2.633,3320.2,3320.0,0.001]
[1768360201613,6.19988756,3320.2,3320.0,0.001]
[1768360201832,16.90903773,3320.2,3319.5,6.40122359]
[1768360202032,16.90903773,3320.2,3318.5,17.5133614]
[1768360202033,6.49860308,3320.0,3318.5,30.0]
[1768360202238,6.49860308,3320.0,3318.6,0.413]
[1768360202542,1.62865882,3319.9,3318.9,30.0]
[1768360202732,6.49860308,3319.7,3318.9,35.84422359]
[1768360202935,3.01241113,3319.6,3318.9,6.40122359]
[1768360203231,6.49860308,3319.7,3318.9,6.40122359]
[1768360203435,3.42525022,3319.8,3318.9,6.40122359]
[1768360203933,3.98025022,3319.8,3319.1,6.40122359]
[1768360204533,3.98025022,3319.8,3319.1,6.33049559]
[1768360205336,6.50280218,3319.7,3318.8,3.01309996]
[1768360205644,6.50280218,3319.7,3318.9,30.0]
[1768360206752,7.05780218,3319.7,3318.9,30.0]
[1768360206957,7.05780218,3319.7,3318.9,3.01302289]
[1768360207647,0.555,3319.7,3319.0,6.67155912]
[1768360208327,0.968,3319.7,3319.0,6.67155912]
[1768360208652,0.968,3319.7,3318.9,3.01302289]
[1768360208853,0.968,3319.7,3318.9,19.68458201]
[1768360209062,14.05047656,3319.7,3319.0,6.67155912]
[1768360209218,14.05047656,3319.7,3318.9,2.018]
[1768360209426,7.96334984,3319.6,3318.7,0.001]
[1768360209733,6.50280218,3319.0,3317.8,6.67155912]
[1768360209931,6.50280218,3318.8,3317.9,6.67155912]
[1768360210122,0.413,3318.7,3317.9,6.67155912]
[1768360210322,0.413,3318.6,3317.9,6.67155912]
[1768360211459,0.968,3318.6,3317.9,6.67155912]
[1768360212331,7.47080218,3318.6,3317.6,6.02942983]
[1768360212521,7.47080218,3318.6,3317.7,36.67155912]
[1768360212730,0.968,3318.6,3317.8,6.67155912]
[1768360213961,1.523,3318.6,3317.8,6.67155912]
[1768360214660,1.11,3318.6,3317.9,6.67155912]
[1768360215047,1.11,3318.6,3318.1,0.001]
[1768360216355,1.665,3318.6,3318.1,0.001]
[1768360218653,1.665,3318.6,3318.1,6.09821855]
[1768360218854,2.22,3318.6,3318.1,6.09821855]
[1768360219968,2.22,3318.6,3318.2,6.09721855]
[1768360221270,2.22,3318.6,3318.1,0.001]
[1768360221470,2.775,3318.6,3318.1,0.001]
[1768360222075,2.775,3318.6,3318.1,6.09821855]
[1768360224278,3.33,3318.6,3318.1,6.09821855]
[1768360225370,7.01897068,3318.6,3318.1,0.001]
[1768360225667,4.00562375,3318.6,3318.1,0.001]
[1768360225869,0.413,3318.5,3318.1,6.09821855]
[1768360226645,0.555,3318.5,3318.1,0.001]
[1768360226868,0.555,3318.5,3318.1,6.09821855]
[1768360228178,0.002,3318.3,3318.1,0.001]
[1768360228396,0.1503436,3317.3,3315.7,5.94621855]
[1768360228685,0.15164852,3316.7,3315.4,12.46165455]
[1768360228846,0.15164852,3316.7,3315.3,10.0]
[1768360228847,0.15830943,3316.5,3315.3,6.09721855]
[1768360229042,1.40696337,3316.6,3315.4,6.09721855]
[1768360229260,0.15830943,3316.5,3315.4,6.09721855]
[1768360229453,1.40696337,3316.6,3315.4,6.09721855]
[1768360229650,1.5652728,3316.6,3315.4,6.09721855]
[1768360229853,0.15652728,3316.5,3315.4,6.09721855]
[1768360230460,0.15652728,3316.5,3315.4,6.56788555]
[1768360230646,0.15652728,3316.5,3315.6,6.09721855]
[1768360230845,2.92813271,3316.5,3315.7,0.470667]
[1768360231484,3.48313271,3316.5,3315.7,0.470667]
[1768360231642,0.80636022,3316.4,3315.7,0.470667]
[1768360232384,0.95450125,3316.3,3315.7,0.470667]
[1768360232673,0.95450125,3316.3,3315.3,13.01628063]
[1768360233055,0.95450125,3316.3,3315.3,0.43144475]
[1768360233254,0.95450125,3316.3,3315.5,3.01612709]
[1768360233587,1.47890067,3316.3,3315.6,0.43144475]
[1768360234146,2.03390067,3316.3,3315.6,0.43144475]
[1768360234683,1.07939942,3316.3,3315.6,0.43144475]
[1768360234984,1.07939942,3316.3,3315.7,6.09721855]
[1768360235897,1.07939942,3316.3,3315.7,4.45993422]
[1768360236353,2.6272928,3316.2,3315.6,0.43144475]
[1768360236553,1.63439942,3316.3,3315.6,0.43144475]
[1768360236792,4.1842314,3316.3,3315.6,0.43144475]
[1768360237197,1.523,3316.3,3315.6,7.45736728]
[1768360237556,1.473,3316.3,3315.7,7.02592253]
[1768360238989,2.028,3316.3,3315.7,7.45736728]
[1768360239301,2.028,3316.3,3315.7,10.47331888]
[1768360239596,4.70054345,3316.3,3315.7,3.0159516]
[1768360239966,4.70154345,3316.3,3315.7,3.0159516]
[1768360240501,2.029,3316.3,3315.5,7.02592253]
[1768360240701,2.029,3316.3,3316.0,0.001]
[1768360241579,2.584,3316.3,3316.0,0.001]
[1768360243071,5.98,3316.3,3316.0,0.001]
[1768360243270,6.394,3316.3,3316.0,0.001]
[1768360244523,6.949,3316.3,3316.0,0.001]
[1768360246768,7.504,3316.3,3316.0,0.001]
[1768360249104,7.09,3316.3,3316.0,7.02692253]
[1768360249291,1.86482746,3316.5,3316.2,7.02592253]
[1768360251033,1.86482746,3316.5,3316.0,0.001]
[1768360251834,2.41982746,3316.5,3316.0,0.001]
[1768360252038,2.41982746,3316.5,3316.0,7.02692253]
[1768360252203,0.414,3316.4,3316.0,7.02692253]
[1768360252707,0.414,3316.4,3316.0,0.001]
[1768360254226,0.414,3316.4,3315.7,3.01595277]
[1768360254227,2.86769678,3316.3,3315.4,7.02592253]
[1768360254572,2.41982746,3316.5,3315.8,6.03170008]
[1768360254712,6.67769678,3317.2,3316.3,7.02592253]
[1768360254912,3.01409787,3317.8,3316.3,7.02592253]
[1768360254913,0.51956957,3317.7,3316.5,7.02592253]
[1768360255234,0.51956957,3317.7,3316.3,9.81138012]
[1768360255235,0.414,3317.6,3316.7,7.02592253]
[1768360255616,0.414,3317.6,3316.8,7.02592253]
[1768360256634,0.969,3317.6,3316.8,7.02592253]
[1768360257342,0.969,3317.6,3316.9,7.02592253]
[1768360257911,0.969,3317.6,3316.8,3.01493192]
[1768360258118,0.969,3317.6,3315.5,7.02592253]
[1768360258119,0.64135163,3317.5,3315.5,7.02592253]
[1768360258344,1.05535163,3317.4,3315.9,3.11672]
[1768360258521,1.05535163,3317.3,3316.1,3.0155342]
[1768360258824,0.00124282,3317.2,3316.1,13.0155342]
[1768360259038,0.00124282,3317.2,3315.9,7.02592253]
[1768360259439,0.00124282,3317.1,3316.0,3.01568154]
[1768360259841,0.00124282,3317.1,3316.0,10.04160407]
[1768360261056,0.414,3317.0,3316.0,13.05728561]
[1768360261852,0.414,3316.9,3316.1,7.05607843]
[1768360262025,0.414,3316.9,3316.1,7.02592253]
[1768360262947,0.555,3317.0,3316.1,7.02592253]
[1768360263151,0.555,3317.0,3316.4,7.02592253]
[1768360263449,0.555,3317.0,3316.5,7.02592253]
[1768360263655,0.555,3317.0,3316.3,13.05673999]
[1768360264227,1.11,3317.0,3316.5,7.02592253]
[1768360264626,1.11,3317.0,3316.3,16.03081746]
[1768360265138,0.002,3316.6,3316.3,16.03081746]
[1768360265451,1.11,3317.0,3316.5,7.29333751]
[1768360265452,0.002,3316.9,3316.5,7.29333751]
[1768360266224,1.16595589,3317.6,3316.5,7.29333751]
[1768360266225,1.11,3317.6,3316.5,7.29333751]
[1768360266445,0.414,3318.1,3317.3,7.29333751]
[1768360266657,0.002,3318.3,3317.3,7.29333751]
[1768360266843,0.002,3318.3,3317.0,0.413]
[1768360266844,0.414,3318.2,3317.6,7.29333751]
[1768360267571,0.414,3318.1,3317.6,7.29333751]
[1768360269661,0.555,3318.1,3317.7,7.29333751]
[1768360269863,0.555,3318.1,3317.9,7.29333751]
[1768360272162,1.11,3318.1,3317.9,7.29333751]
[1768360274864,1.665,3318.1,3317.9,7.29333751]
[1768360275256,1.615,3318.1,3317.9,7.29333751]
[1768360275460,1.59900001,3318.1,3317.9,7.29333751]
[1768360277276,2.15400001,3318.1,3317.9,7.29333751]
[1768360277645,2.15600001,3318.1,3317.9,7.29333751]
[1768360278961,1.0,3318.0,3317.9,7.29333751]
[1768360279540,1.555,3318.0,3317.9,7.29333751]
[1768360281973,2.11,3318.0,3317.9,7.29333751]
[1768360284250,2.665,3318.0,3317.9,7.29333751]
[1768360286767,3.22,3318.0,3317.9,7.29333751]
[1768360289068,3.775,3318.0,3317.9,7.29333751]
[1768360290370,3.475,3318.0,3317.9,7.28542047]
[1768360291577,4.03,3318.0,3317.9,7.28542047]
[1768360292512,2.15600001,3318.1,3317.9,7.28542047]
[1768360292686,2.15600001,3318.1,3318.0,7.28542047]
[1768360294211,2.71100001,3318.1,3318.0,7.28542047]
[1768360294609,0.61100001,3318.1,3318.0,7.28542047]
[1768360296611,1.16600001,3318.1,3318.0,7.28542047]
[1768360297790,0.555,3318.5,3317.4,0.413]
[1768360297791,0.507,3318.5,3318.3,7.37203591]
[1768360298097,6.8163979,3319.4,3318.5,7.37203591]
[1768360298297,2.85396864,3319.3,3318.5,7.37203591]
[1768360298502,2.85396864,3319.3,3318.6,7.37203591]
[1768360298503,2.623,3319.3,3318.6,7.37203591]
[1768360298875,0.413,3319.2,3318.6,7.37203591]
[1768360299596,0.413,3319.1,3318.6,7.37203591]
[1768360300812,0.555,3319.3,3318.7,7.37203591]
[1768360301176,0.413,3319.2,3318.7,7.37203591]
[1768360301995,0.002,3318.8,3318.7,7.37203591]
[1768360303579,0.557,3318.8,3318.7,7.37203591]
[1768360306003,1.112,3318.8,3318.7,7.37203591]
[1768360308528,1.667,3318.8,3318.7,7.37203591]
[1768360310933,2.222,3318.8,3318.7,7.37203591]
[1768360311737,1.91954782,3318.8,3318.6,3.01330903]
[1768360311906,1.0164954,3318.8,3318.5,3.01337802]
[1768360312107,0.98546439,3318.8,3318.6,7.37203591]
[1768360312529,0.98546439,3318.8,3318.6,10.38533517]
[1768360312740,0.98546439,3318.8,3318.7,7.37203591]
[1768360313947,1.54046439,3318.8,3318.7,7.37203591]
[1768360314843,1.54046439,3318.8,3318.6,3.01329926]
[1768360315144,1.54046439,3318.8,3318.7,7.37203591]
[1768360316648,2.09546439,3318.8,3318.7,7.37203591]
[1768360319857,2.65046439,3318.8,3318.7,7.37203591]
[1768360321526,2.65046439,3318.8,3318.7,7.26796136]
[1768360322441,3.20546439,3318.8,3318.7,7.26796136]
[1768360324760,3.76046439,3318.8,3318.7,7.26796136]
[1768360325977,3.76046439,3318.8,3318.7,10.28118943]
[1768360326278,3.76046439,3318.8,3318.7,7.26796136]
[1768360326766,2.212,3319.1,3318.8,6.96681936]
[1768360327195,2.767,3319.1,3318.8,6.96681936]
[1768360329573,3.322,3319.1,3318.8,6.96681936]
[1768360329889,0.226,3319.7,3319.0,6.96681936]
[1768360330047,0.413,3319.6,3319.0,6.96681936]
[1768360330247,0.413,3319.6,3318.8,15.82068953]
[1768360330248,1.06994032,3319.6,3318.8,15.82068953]
[1768360330447,0.65694032,3319.5,3318.8,15.82068953]
[1768360330648,0.413,3319.6,3318.9,6.96681936]
[1768360331257,0.226,3319.7,3318.9,6.96681936]
[1768360331450,0.413,3319.6,3318.9,6.96681936]
[1768360331759,0.226,3319.7,3319.1,6.96681936]
[1768360332085,0.555,3319.6,3319.1,6.96681936]
[1768360332382,0.52144284,3319.6,3319.4,6.96681936]
[1768360332581,0.52144284,3319.6,3319.0,6.0259114]